Cogmind - Beta 9.5 @@@ ROGUE MODE // 2020.04.01 @ 16:44:17 Player: EgoOrb Result: Destroyed by G-34 Mercenary with Small Laser Performance ------------- Evolutions (0) 0 Regions Visited (1) 200 Robots Destroyed (4) 20 Value Destroyed (131) 131 Prototype IDs (0) 0 Alien Tech Used (0) 0 Bonus (0) 0 TOTAL SCORE: 351 Bonus ------- None Cogmind --------- Core Integrity 0/250 Matter 278/300 Energy 100/100 System Corruption 0% Temperature Cool (6) Movement Core (300) Ox5 Location -10/Materials Parts ------- > --- POWER (1) -------- (None) > --- PROPULSION (2) --- (None) > --- UTILITY (2) ------ Large Storage Unit > --- WEAPON (2) ------- (None) > --- INVENTORY (10) --- Wheel Structural Scanner Tractor Beam Peak State ------------ > --- POWER ------------ Light Nuclear Core > --- PROPULSION ------- Aluminum Leg Aluminum Leg > --- UTILITY ---------- Improved Heat Sink Large Storage Unit > --- WEAPON ----------- Small Laser > --- INVENTORY -------- Wheel [Rating: 10] Favorites ----------- Power Light Nuclear Core Engine Light Ion Engine Power Core Light Nuclear Core Propulsion Aluminum Leg Leg Aluminum Leg Utility Large Storage Unit Device Improved Heat Sink Storage Large Storage Unit Weapon Small Laser Energy Gun Small Laser Ballistic Gun Light Assault Rifle Build | -11 -10 ------- Run | Scr Mat Slots Evolved . | . . Power . | . . Propulsion . | . . Utility . | . . Weapon . | . . Parts Attached 15 | 5 10 Power 4 | 1 3 Engine 1 | 1 . Core 3 | . 3 Reactor . | . . Propulsion 3 | 2 1 Treads . | . . Leg 3 | 2 1 Wheel . | . . Hover . | . . Flight . | . . Utility 3 | . 3 Device 2 | . 2 Storage 1 | . 1 Processor . | . . Hackware . | . . Protection . | . . Artifact . | . . Weapon 5 | 2 3 Energy Gun 4 | 2 2 Energy Cannon . | . . Ballistic Gun 1 | . 1 Ballistic Cannon . | . . Launcher . | . . Special Weapon . | . . Impact Weapon . | . . Slashing Weapon . | . . Piercing Weapon . | . . Special Melee Weapon . | . . Unidentified Prototypes . | . . Parts Lost 7 | . 7 Power 1 | . 1 Propulsion 2 | . 2 Utility 1 | . 1 Weapon 3 | . 3 Highest Loss Streak 4 | . 4 Average Slot Usage (%) 69 | . 69 Engine 3 | . 3 Core 6 | . 6 Leg 25 | . 25 Device 9 | . 9 Storage 9 | . 9 Energy Gun 11 | . 11 Ballistic Gun 1 | . 1 Naked Turns . | . . Heaviest Build 23 | 5 23 Greatest Support 20 | 20 20 Greatest Overweight (x) 5 | . 5 Average Overweight (x) . | . . Largest Inventory Capacity 10 | 4 10 Average Capacity 7 | 4 8 Most Carried 4 | 4 4 Average Carried 2 | 2 2 Final Capacity 10 | 4 10 Final Carried 3 | 2 3 Class Distribution -------------------- 100% | Mutant Dominant Class ---------------- Mutant | -10/Materials Resources | -11 -10 ----------- Run | Scr Mat Matter Collected 303 | 250 53 Remotely . | . . Salvage Created 177 | 49 128 Parts 12 | 3 9 Haulers Intercepted . | . . Recyclers Shooed . | . . Parts Field Recycled . | . . Retrieved Matter . | . . Parts Self-Destructed . | . . Prevented . | . . Kills | -11 -10 ------- Run | Scr Mat Combat Hostiles Destroyed 3 | 1 2 Guns 3 | 1 2 Classes Destroyed 2 | 1 1 Watcher 1 | . 1 Grunt 3 | 1 2 Best Kill Streak 1 | 1 1 Combat Bots Only 1 | 1 1 Max Kills in Single Turn 1 | 1 1 Gunslinging . | . . Exploded . | . . Melee . | . . Uniques/NPCs Destroyed . | . . Combat | -11 -10 -------- Run | Scr Mat Damage Taken 831 | 42 789 Core 250 | 10 240 Absorbed by Shields . | . . Core Remaining (%) 96 | 96 . Volleys Fired 23 | 2 21 Largest 2 | 2 2 Hottest 80 | 80 60 Shots Fired 38 | 4 34 Gun 38 | 4 34 Cannon . | . . Launcher . | . . Special . | . . Kinetic 13 | . 13 Thermal 25 | 4 21 Explosive . | . . Electromagnetic . | . . Robot Hit Streak 9 | 2 9 Robot Miss Streak 3 | 1 3 Penetration Max . | . . Secondary Targets 1 | . 1 Max Gunslinging Chain 1 | . 1 Shots Hit Robots 23 | 2 21 Core Hits 11 | 2 9 Critical Hits . | . . Critical Kills . | . . Critical Parts Destroyed . | . . Melee Attacks . | . . Impact . | . . Slashing . | . . Piercing . | . . Sneak Attacks . | . . Combat Hostiles . | . . Follow-up Attacks . | . . Damage Inflicted 257 | 30 227 Guns 255 | 30 225 Cannons . | . . Explosions . | . . Melee . | . . Ramming 2 | . 2 Kinetic 71 | . 71 Thermal 184 | 30 154 Explosive . | . . Electromagnetic . | . . Impact . | . . Slashing . | . . Piercing . | . . Highest Corruption . | . . Average Corruption . | . . Corruption Purged . | . . Overload Shots . | . . Overflow Damage . | . . Projectiles . | . . Explosions . | . . Melee . | . . Knockbacks . | . . Impact . | . . Kinetic . | . . Secondary . | . . Self-Inflicted Damage 1 | . 1 Shots . | . . Rammed 1 | . 1 Targets Rammed 1 | . 1 Kicked . | . . Crushed . | . . Highest Temperature 73 | 36 73 Average Temperature 35 | 20 37 Received Heat Transfer 465 | 24 441 Siege Activations . | . . Robots Corrupted . | . . Combat Hostiles . | . . Parts Fried . | . . Impact Corruptions . | . . Robots Melted . | . . Combat Hostiles . | . . Parts Melted 1 | . 1 Heat Transferred 425 | 75 350 Parts Sabotaged . | . . Parts Stolen . | . . Parts Stripped . | . . Power Chain Reactions . | . . Missiles Intercepted . | . . Alert | -11 -10 ------- Run | Scr Mat Peak Influence 67 | 20 67 Average Influence 38 | 1 46 Maximum Alert Level . | . . Low Security (%) 100 | 100 100 Level 1 . | . . Level 2 . | . . Level 3 . | . . Level 4 . | . . Level 5 . | . . High Security . | . . Max Security . | . . Squads Dispatched 1 | . 1 Investigation . | . . Extermination . | . . Reinforcement 1 | . 1 Assault . | . . Garrison . | . . Intercept . | . . Construction Impeded . | . . Haulers Reinforced . | . . Stealth | -11 -10 --------- Run | Scr Mat Distress Signals . | . . Communications Jammed . | . . Distress Signals . | . . Times Spotted 9 | 1 8 Peak Tracking Total 3 | 1 3 Tactical Retreats . | . . Traps | -11 -10 ------- Run | Scr Mat Traps Triggered 1 | . 1 Indirectly . | . . Trap Hack Attempts . | . . Triggered . | . . Disarmed . | . . Reprogrammed . | . . Reused . | . . Traps Extracted . | . . Installed . | . . Triggered . | . . Machines | -11 -10 ---------- Run | Scr Mat Machines Disabled . | . . Max in Single Turn . | . . Machines Sabotaged . | . . Garrisons Compromised . | . . Overloaded Fab Kills . | . . Fab Network Shutdowns . | . . Hacking | -11 -10 --------- Run | Scr Mat Machines Accessed 3 | . 3 Terminals 1 | . 1 Fabricators . | . . Repair Stations 1 | . 1 Recycling Units 1 | . 1 Scanalyzers . | . . Garrison Access . | . . Total Hacks 6 | . 6 Successful 4 | . 4 Failed 2 | . 2 Catastrophic . | . . Database Lockouts . | . . Manual . | . . Terminals 2 | . 2 Fabricators . | . . Repair Stations 3 | . 3 Recycling Units 1 | . 1 Scanalyzers . | . . Garrison Access . | . . Terminal Hacks 1 | . 1 Record 1 | . 1 Fabricator Hacks . | . . Repair Station Hacks 2 | . 2 Scan Component 1 | . 1 Repair 1 | . 1 Recycling Unit Hacks 1 | . 1 Retrieve Components 1 | . 1 Scanalyzer . | . . Garrison Access Hacks . | . . Unauthorized Hacks . | . . Terminals . | . . Fabricators . | . . Repair Stations . | . . Recycling Units . | . . Scanalyzers . | . . Garrison Access . | . . Data Cores Recovered . | . . Used . | . . Hacking Detections 1 | . 1 Full Trace Events . | . . Feedback Events . | . . Feedback Blocked . | . . Robot Schematics Acquired . | . . Robots Built . | . . Matter . | . . Time . | . . Total Robot Build Rating . | . . Part Schematics Acquired . | . . Parts Built . | . . Matter . | . . Time . | . . Total Part Build Rating . | . . Parts Repaired 1 | . 1 Time 38 | . 38 Parts Recycled . | . . Recycled Matter . | . . Retrieved Matter . | . . Retrieved Components 3 | . 3 Parts Scanalyzed . | . . Part Schematics Acquired . | . . Parts Damaged . | . . Bothacking | -11 -10 ------------ Run | Scr Mat Used RIF Installer . | . . Robots Hacked . | . . Non-combat . | . . Combat . | . . Robot Hacks Applied . | . . Relay Couplers Released . | . . Robots Rewired . | . . Allies Hacked . | . . Hacks Repelled . | . . Allies | -11 -10 -------- Run | Scr Mat Total Allies . | . . Largest Group . | . . Highest-Rated Group . | . . Highest-Rated Ally . | . . Total Orders . | . . Ally Attacks . | . . Total Damage . | . . Kills . | . . Allies Corrupted . | . . Allies Melted . | . . Intel | -11 -10 ------- Run | Scr Mat Robot Analysis Total . | . . Derelict Logs Recovered . | . . Drone Launches . | . . Drone Recoveries . | . . Exploration | -11 -10 ------------- Run | Scr Mat Turns Passed 502 | 93 409 Spaces Moved 290 | 81 209 Core 32 | 30 2 Treads . | . . Legs 258 | 51 207 Wheels . | . . Hover . | . . Flight . | . . Fastest Speed 50 | 50 120 Average Speed 127 | 94 139 Slowest Speed 300 | 120 300 Overloaded Moves . | . . Propulsion Burnouts . | . . Robots Hopped . | . . Cave-ins Triggered . | . . Exploration Rate (%) 14 | 6 23 Regions Visited 1 Branch Regions . Pre-discovered Areas . | . . Known Exits Taken . | . . Unknown Exits Taken 1 | 1 . Scrap Searched . | . . Spaces Dug . | . . Terrain Destroyed . | . . Melee . | . . Projectile . | . . AOE . | . . Actions | -11 -10 --------- Run | Scr Mat Total 389 | 94 295 Wait 38 | . 38 Move 289 | 80 209 Hop . | . . Pick Up 18 | 7 11 Fast Attach . | . . Attach 15 | 5 10 Detach 2 | . 2 Swap . | . . Drop 3 | . 3 Fire 23 | 2 21 Melee . | . . Ram 1 | . 1 Kick . | . . Crush . | . . Escape Stasis . | . . Rewire . | . . Trap . | . . Miscellaneous . | . . Route ------- -11/Scrapyard -10/Materials History --------- Turn | Location | Event 2 | -11/Scrapyard | Met Revision 17 71 | -11/Scrapyard | Discovered new exit (range 8) 94 | -11/Scrapyard | Entered Materials 306 | -10/Materials | Build established: Mutant 367 | -10/Materials | Repaired Lgt. Nuclear Core 440 | -10/Materials | Core integrity fell below 50% 498 | -10/Materials | Core integrity fell below 20% 503 | -10/Materials | Destroyed by G-34 Mercenary with Small Laser Last Messages --------------- Sml. Laser severed. Lgt. Nuclear Core severed. Imp. Heat Sink severed. U-05 Engineer lays Concrete. Acquired Sml. Laser. Acquired Imp. Heat Sink. Acquired Lgt. Nuclear Core. Sml. Laser destroyed. G-34 Mercenary destroyed. Acquired Tractor Beam. Lgt. Nuclear Core destroyed. Aluminum Leg destroyed. Imp. Heat Sink destroyed. K-01 Serf collects debris. K-01 Serf cleans the Atomic Centrifuge. Aluminum Leg destroyed. K-01 Serf cleans the Atomic Centrifuge. Slammed into G-34 Mercenary. K-01 Serf cleans the Atomic Centrifuge. Atomic Centrifuge disabled. Map ----- +----------------------------------------------------+ | ????????????????????????????????????? | | ????????????????????????????????????? | | ????????????????????????????????????? | | ????????????????????????????????????? | | ????????????????????????????????????? | | ????????????????????????????????????? | | ????????????????????????????????????? | | ????????????????????????????????????? | | ????????????????????????????????????? | | ????????????????????????????????????? | | ????????????????????????????????????? | | ???????????##########???????????????? | | ???????????# #???????????????? | | ???????????# """ #???????????????? | | ??########## "R" #???????????????? | | ??# # " " #???????????????? | | ??# # #???????????????? | | ??# # """ #???????????????? | | # # """ #???????????????? | | +% # """ #???????????????? | | # # #####???????????? | | ??# #####+#### #???????????? | | ??# #### ### #???????????? | | ??# + ########????? | | ??############# # g g #????? | | ??????????????# !! #@ g #????? | | ?????????????## !! # " " #????? | | ?????????????#" ! # """ #????? | | ?????????????#T + """ #????? | | ?????????????#" # k #????? | | ?????????????## """ ########????? | | ??????????????# """ #???######?? | | ??????????????# """ #??##! !!##? | | ??????????????# #??#! !#? | | ??????????????# #??#! !#? | | ??????????????# ###### #? | | ??????????????###### #"""## #? | | ???????????????????# #"Y"## #? | | ???????????????????# ^ #? | | ???????????????????# ^ !!^ #? | | ???????????????????# ^^ "#? | | ???????????????????# T#? | | ???????????????????# = *[= "#? | | ????????????????? + *% !%= #? | | ?????????????????? # = ![=== #? | | ???????????????????# != #? | | ???????????????????## ####### #? | | ????????????????????# #?????# #? | | ????????????????????# +?????# #? | | ???????????????????+ ??????# #? | +----------------------------------------------------+ Best States ------------- Heat Dissipation 39 Energy Generation 14 Energy Capacity 160 Matter Stores 300 Matter Capacity 300 Sight Range 16 Terrain Scan Density 10 Evasion (%) 50 Item Schematics ----------------- None Robot Schematics ------------------ None Fabricated ------------ Nothing Alien Tech Used ----------------- None Achievements -------------- None Challenges ------------ None Game ------ Seed SegregatorReactiveArmor Manual? 0 Play Time 00:10:10 Cumulative 1.4 hours Start 2020.04.01 @ 16:36:57 End 2020.04.01 @ 16:44:17 Sessions 1 Manual Loads 0 Difficulty Rogue Special Mode None Game No. 3 Rogue 3 Adventurer 0 Explorer 0 Win Type - Total 0 Types 0/0/0/0/0/0/0 Lore% 0 Gallery% 3 Achievement% 3 Wizard Run 0 Options --------- ASCII 0 Keyboard 0 Movement Arrows Keybinds 0 Fullscreen 1 Font 36/Smallcaps Map View 76x50 Tactical HUD 0 Map Filters NONE Filters NONE Steam 1 RUN: 3ba47821-1074-43b1-b2e6-f62ba3bacd91